[Event "Titled Tuesday Blitz March 22 Early 2022"]
[White "Gubanov, Oleg"]
[Black "Manolache, Marius"]
[WhiteFideId "14115115"]
[BlackFideId "1201530"]
[WhiteElo "2080"]
[BlackElo "2389"]
[Result "0-1"]
[Round "02"]
[TimeControl "180+1"]
[Date "2022.03.22"]
[WhiteClock "0:00:09"]
[BlackClock "0:00:17"]

1. e4 {[%clk 0:03:00]}  c5 {[%clk 0:02:58]} 2. Nf3 {[%clk 0:03:00]}  e6 {[%clk 0:02:58]} 3. c3 {[%clk 0:03:00]}  Nf6 {[%clk 0:02:57]} 4. e5 {[%clk 0:03:01]}  Nd5 {[%clk 0:02:57]} 5. Bc4 {[%clk 0:03:01]}  d6 {[%clk 0:02:57]} 6. d4 {[%clk 0:02:57]}  cxd4 {[%clk 0:02:55]} 7. cxd4 {[%clk 0:02:57]}  Nc6 {[%clk 0:02:55]} 8. exd6 {[%clk 0:02:31]}  Bxd6 {[%clk 0:02:53]} 9. O-O {[%clk 0:02:31]}  Be7 {[%clk 0:02:51]} 10. Nc3 {[%clk 0:02:27]}  O-O {[%clk 0:02:50]} 11. Re1 {[%clk 0:02:22]}  Nb6 {[%clk 0:02:45]} 12. Bd3 {[%clk 0:02:21]}  Bf6 {[%clk 0:02:44]} 13. Be3 {[%clk 0:02:17]}  Nd5 {[%clk 0:02:42]} 14. Nxd5 {[%clk 0:02:04]}  exd5 {[%clk 0:02:41]} 15. h3 {[%clk 0:02:02]}  Be6 {[%clk 0:02:35]} 16. Rc1 {[%clk 0:02:00]}  Rc8 {[%clk 0:02:32]} 17. Qb3 {[%clk 0:01:55]}  Na5 {[%clk 0:02:22]} 18. Rxc8 {[%clk 0:01:37]}  Qxc8 {[%clk 0:02:20]} 19. Qb5 {[%clk 0:01:15]}  Nc6 {[%clk 0:02:14]} 20. Rc1 {[%clk 0:01:11]}  Qd7 {[%clk 0:02:13]} 21. Ng5 {[%clk 0:00:53]}  Bxg5 {[%clk 0:02:08]} 22. Bxg5 {[%clk 0:00:52]}  Nxd4 {[%clk 0:01:56]} 23. Qxd7 {[%clk 0:00:30]}  Bxd7 {[%clk 0:01:56]} 24. Rc7 {[%clk 0:00:29]}  Bc6 {[%clk 0:01:55]} 25. Be3 {[%clk 0:00:20]}  Ne6 {[%clk 0:01:53]} 26. Re7 {[%clk 0:00:20]}  d4 {[%clk 0:01:31]} 27. Bd2 {[%clk 0:00:20]}  Rd8 {[%clk 0:01:22]} 28. Bc4 {[%clk 0:00:18]}  a6 {[%clk 0:00:28]} 29. f4 {[%clk 0:00:17]}  g6 {[%clk 0:00:27]} 30. g4 {[%clk 0:00:17]}  Re8 {[%clk 0:00:16]} 31. Rxe8+ {[%clk 0:00:14]}  Bxe8 {[%clk 0:00:16]} 32. f5 {[%clk 0:00:12]}  gxf5 {[%clk 0:00:15]} 33. gxf5 {[%clk 0:00:12]}  Nc5 {[%clk 0:00:15]} 34. Kf2 {[%clk 0:00:11]}  Ne4+ {[%clk 0:00:14]} 35. Ke2 {[%clk 0:00:11]}  Nd6 {[%clk 0:00:13]} 36. Bd3 {[%clk 0:00:11]}  Bd7 {[%clk 0:00:11]} 37. f6 {[%clk 0:00:11]}  Bb5 {[%clk 0:00:11]} 38. Bf4 {[%clk 0:00:10]}  Ne4 {[%clk 0:00:09]} 39. Bxb5 {[%clk 0:00:09]}  axb5 {[%clk 0:00:10]} 40. Be5 {[%clk 0:00:10]}  Nc5 {[%clk 0:00:10]} 41. Bxd4 {[%clk 0:00:09]}  Ne6 {[%clk 0:00:10]} 42. Be5 {[%clk 0:00:09]}  h5 {[%clk 0:00:11]} 43. Kd3 {[%clk 0:00:10]}  Kh7 {[%clk 0:00:11]} 44. h4 {[%clk 0:00:10]}  Kg6 {[%clk 0:00:11]} 45. Kc3 {[%clk 0:00:10]}  Kf5 {[%clk 0:00:12]} 46. Bd6 {[%clk 0:00:09]}  Kxf6 {[%clk 0:00:12]} 47. Kb4 {[%clk 0:00:09]}  Kf5 {[%clk 0:00:12]} 48. Kxb5 {[%clk 0:00:10]}  Kg4 {[%clk 0:00:12]} 49. Be7 {[%clk 0:00:09]}  f5 {[%clk 0:00:12]} 50. Kb6 {[%clk 0:00:09]}  f4 {[%clk 0:00:13]} 51. Bb4 {[%clk 0:00:07]}  f3 {[%clk 0:00:12]} 52. Be1 {[%clk 0:00:07]}  Kh3 {[%clk 0:00:13]} 53. Kxb7 {[%clk 0:00:07]}  Kg2 {[%clk 0:00:12]} 54. a4 {[%clk 0:00:07]}  Nd4 {[%clk 0:00:13]} 55. a5 {[%clk 0:00:06]}  Nc2 {[%clk 0:00:14]} 56. a6 {[%clk 0:00:06]}  Nxe1 {[%clk 0:00:14]} 57. a7 {[%clk 0:00:07]}  f2 {[%clk 0:00:15]} 58. a8=Q {[%clk 0:00:07]}  f1=Q {[%clk 0:00:16]} 59. b4 {[%clk 0:00:07]}  Qf3+ {[%clk 0:00:17]} 60. Ka7 {[%clk 0:00:07]}  Qxa8+ {[%clk 0:00:17]} 61. Kxa8 {[%clk 0:00:08]}  Nd3 {[%clk 0:00:16]} 62. b5 {[%clk 0:00:08]}  Nc5 {[%clk 0:00:16]} 63. b6 {[%clk 0:00:08]}  Kg3 {[%clk 0:00:16]} 64. Ka7 {[%clk 0:00:07]}  Kxh4 {[%clk 0:00:16]} 65. Kb8 {[%clk 0:00:08]}  Nd7+ {[%clk 0:00:16]} 66. Kc7 {[%clk 0:00:09]}  Nxb6 {[%clk 0:00:17]} 67. Kxb6 {[%clk 0:00:09]}  Kg3 {[%clk 0:00:17]} 0-1


[Site "https://www.chess.com"]

[Event "Titled Tuesday Blitz March 22 Early 2022"]
[White "Harish, Neeraj"]
[Black "Shtyka, Sergey"]
[WhiteFideId "30958130"]
[BlackFideId "4138465"]
[WhiteElo "1574"]
[BlackElo "2014"]
[Result "0-1"]
[Round "02"]
[TimeControl "180+1"]
[Date "2022.03.22"]
[WhiteClock "0:00:03"]
[BlackClock "0:00:39"]

1. e4 {[%clk 0:03:00]}  c5 {[%clk 0:02:59]} 2. Nf3 {[%clk 0:03:00]}  Nc6 {[%clk 0:02:59]} 3. Bb5 {[%clk 0:02:59]}  Nd4 {[%clk 0:02:58]} 4. Nxd4 {[%clk 0:02:53]}  cxd4 {[%clk 0:02:59]} 5. Bc4 {[%clk 0:02:53]}  g6 {[%clk 0:02:57]} 6. d3 {[%clk 0:02:49]}  Bg7 {[%clk 0:02:57]} 7. O-O {[%clk 0:02:48]}  e6 {[%clk 0:02:56]} 8. f4 {[%clk 0:02:39]}  Ne7 {[%clk 0:02:54]} 9. Bb3 {[%clk 0:02:34]}  O-O {[%clk 0:02:53]} 10. Nd2 {[%clk 0:02:32]}  d5 {[%clk 0:02:50]} 11. e5 {[%clk 0:02:32]}  f6 {[%clk 0:02:47]} 12. Nf3 {[%clk 0:02:22]}  Nc6 {[%clk 0:02:44]} 13. exf6 {[%clk 0:01:51]}  Bxf6 {[%clk 0:02:42]} 14. Qe2 {[%clk 0:01:51]}  Qd6 {[%clk 0:02:30]} 15. Bd2 {[%clk 0:01:31]}  Bd7 {[%clk 0:02:29]} 16. Rae1 {[%clk 0:01:30]}  Rae8 {[%clk 0:02:28]} 17. Ne5 {[%clk 0:01:20]}  Bc8 {[%clk 0:02:19]} 18. Ng4 {[%clk 0:01:06]}  Bg7 {[%clk 0:02:16]} 19. Ne5 {[%clk 0:01:05]}  a6 {[%clk 0:02:13]} 20. a4 {[%clk 0:00:57]}  b6 {[%clk 0:01:59]} 21. a5 {[%clk 0:00:49]}  Nxa5 {[%clk 0:01:51]} 22. Bxa5 {[%clk 0:00:49]}  bxa5 {[%clk 0:01:52]} 23. Ba4 {[%clk 0:00:43]}  Re7 {[%clk 0:01:43]} 24. Qd2 {[%clk 0:00:37]}  Qb4 {[%clk 0:01:36]} 25. Qxb4 {[%clk 0:00:31]}  axb4 {[%clk 0:01:37]} 26. Nc6 {[%clk 0:00:31]}  Rb7 {[%clk 0:01:35]} 27. Na5 {[%clk 0:00:22]}  Rc7 {[%clk 0:01:30]} 28. Nc6 {[%clk 0:00:21]}  Bd7 {[%clk 0:01:28]} 29. Ne7+ {[%clk 0:00:16]}  Kf7 {[%clk 0:01:28]} 30. Bxd7 {[%clk 0:00:16]}  Rxd7 {[%clk 0:01:25]} 31. Nc6 {[%clk 0:00:17]}  Rb7 {[%clk 0:01:22]} 32. Ra1 {[%clk 0:00:16]}  Rb6 {[%clk 0:01:23]} 33. Ne5+ {[%clk 0:00:15]}  Ke7 {[%clk 0:01:18]} 34. Ra5 {[%clk 0:00:13]}  Rc8 {[%clk 0:01:14]} 35. Rc1 {[%clk 0:00:12]}  Kd6 {[%clk 0:01:01]} 36. Kf2 {[%clk 0:00:11]}  Bxe5 {[%clk 0:01:00]} 37. fxe5+ {[%clk 0:00:11]}  Kxe5 {[%clk 0:01:01]} 38. Re1+ {[%clk 0:00:11]}  Kd6 {[%clk 0:01:02]} 39. Re2 {[%clk 0:00:12]}  Rbc6 {[%clk 0:01:01]} 40. Kf3 {[%clk 0:00:10]}  h6 {[%clk 0:00:59]} 41. Kf4 {[%clk 0:00:10]}  Rf8+ {[%clk 0:00:58]} 42. Kg4 {[%clk 0:00:10]}  Rf1 {[%clk 0:00:57]} 43. h4 {[%clk 0:00:09]}  Kc7 {[%clk 0:00:51]} 44. h5 {[%clk 0:00:09]}  g5 {[%clk 0:00:50]} 45. Ra4 {[%clk 0:00:03]}  Kb6 {[%clk 0:00:49]} 46. Rxb4+ {[%clk 0:00:04]}  Kc5 {[%clk 0:00:48]} 47. Ra4 {[%clk 0:00:03]}  Rb6 {[%clk 0:00:45]} 48. Ra3 {[%clk 0:00:04]}  Kd6 {[%clk 0:00:41]} 49. Ra1 {[%clk 0:00:04]}  Rf4+ {[%clk 0:00:42]} 50. Kg3 {[%clk 0:00:03]}  Ke7 {[%clk 0:00:41]} 51. Ra2 {[%clk 0:00:03]}  Kf6 {[%clk 0:00:41]} 52. c3 {[%clk 0:00:03]}  e5 {[%clk 0:00:39]} 53. cxd4 {[%clk 0:00:03]}  Rxd4 {[%clk 0:00:40]} 54. Kf3 {[%clk 0:00:02]}  Rxd3+ {[%clk 0:00:40]} 55. Kg4 {[%clk 0:00:03]}  Rb4+ {[%clk 0:00:39]} 0-1


[Site "https://www.chess.com"]

[Event "Titled Tuesday Blitz March 22 Early 2022"]
[White "Hnydiuk, Aleksander"]
[Black "Rodrigue-Lemieux, Shawn"]
[WhiteFideId "1109057"]
[BlackFideId "2620049"]
[WhiteElo "2374"]
[BlackElo "1763"]
[Result "0-1"]
[Round "02"]
[TimeControl "180+1"]
[Date "2022.03.22"]
[WhiteClock "0:00:02"]
[BlackClock "0:01:16"]

1. Nf3 {[%clk 0:03:00]}  d5 {[%clk 0:02:59]} 2. d4 {[%clk 0:03:00]}  Nf6 {[%clk 0:02:59]} 3. c4 {[%clk 0:02:59]}  e6 {[%clk 0:03:00]} 4. g3 {[%clk 0:02:59]}  Be7 {[%clk 0:03:00]} 5. Bg2 {[%clk 0:02:59]}  O-O {[%clk 0:03:01]} 6. Qc2 {[%clk 0:02:56]}  c5 {[%clk 0:03:00]} 7. O-O {[%clk 0:02:55]}  cxd4 {[%clk 0:02:59]} 8. Nxd4 {[%clk 0:02:56]}  e5 {[%clk 0:02:59]} 9. Nf5 {[%clk 0:02:55]}  d4 {[%clk 0:02:58]} 10. Nxe7+ {[%clk 0:02:48]}  Qxe7 {[%clk 0:02:59]} 11. Bg5 {[%clk 0:02:47]}  Nc6 {[%clk 0:02:58]} 12. Nd2 {[%clk 0:02:47]}  h6 {[%clk 0:02:58]} 13. Bxf6 {[%clk 0:02:46]}  Qxf6 {[%clk 0:02:59]} 14. a3 {[%clk 0:02:30]}  Bf5 {[%clk 0:02:58]} 15. Ne4 {[%clk 0:02:22]}  Qe7 {[%clk 0:02:58]} 16. b4 {[%clk 0:02:22]}  Rac8 {[%clk 0:02:58]} 17. Qb2 {[%clk 0:02:12]}  Rfd8 {[%clk 0:02:47]} 18. Rfd1 {[%clk 0:02:04]}  b6 {[%clk 0:02:39]} 19. Rac1 {[%clk 0:02:03]}  a5 {[%clk 0:02:35]} 20. c5 {[%clk 0:01:57]}  axb4 {[%clk 0:02:33]} 21. axb4 {[%clk 0:01:58]}  bxc5 {[%clk 0:02:20]} 22. Nxc5 {[%clk 0:01:25]}  Na7 {[%clk 0:02:13]} 23. Ne4 {[%clk 0:00:54]}  Nb5 {[%clk 0:02:07]} 24. Rc5 {[%clk 0:00:40]}  Bxe4 {[%clk 0:02:05]} 25. Rxb5 {[%clk 0:00:31]}  Bxg2 {[%clk 0:02:06]} 26. Kxg2 {[%clk 0:00:31]}  Rb8 {[%clk 0:02:04]} 27. Rxb8 {[%clk 0:00:29]}  Rxb8 {[%clk 0:02:05]} 28. Rb1 {[%clk 0:00:27]}  Rb5 {[%clk 0:02:04]} 29. Qc2 {[%clk 0:00:22]}  Qb7+ {[%clk 0:01:47]} 30. Kg1 {[%clk 0:00:22]}  Rxb4 {[%clk 0:01:44]} 31. Rxb4 {[%clk 0:00:20]}  Qxb4 {[%clk 0:01:45]} 32. Qc8+ {[%clk 0:00:20]}  Qf8 {[%clk 0:01:46]} 33. Qf5 {[%clk 0:00:19]}  Qe8 {[%clk 0:01:45]} 34. f3 {[%clk 0:00:10]}  Qe7 {[%clk 0:01:44]} 35. Qc8+ {[%clk 0:00:09]}  Kh7 {[%clk 0:01:45]} 36. Qf5+ {[%clk 0:00:06]}  g6 {[%clk 0:01:45]} 37. Qe4 {[%clk 0:00:06]}  Qf6 {[%clk 0:01:43]} 38. Qd5 {[%clk 0:00:05]}  Kg7 {[%clk 0:01:43]} 39. Kg2 {[%clk 0:00:05]}  h5 {[%clk 0:01:44]} 40. h4 {[%clk 0:00:04]}  Qf5 {[%clk 0:01:43]} 41. Qd6 {[%clk 0:00:02]}  Qf6 {[%clk 0:01:40]} 42. Qd5 {[%clk 0:00:02]}  Qe7 {[%clk 0:01:40]} 43. Qe4 {[%clk 0:00:02]}  Qe6 {[%clk 0:01:41]} 44. Qb7 {[%clk 0:00:02]}  Kf6 {[%clk 0:01:40]} 45. Qc7 {[%clk 0:00:02]}  Kf5 {[%clk 0:01:31]} 46. Qd8 {[%clk 0:00:02]}  f6 {[%clk 0:01:22]} 47. Kf2 {[%clk 0:00:02]}  Qc6 {[%clk 0:01:16]} 0-1


[Site "https://www.chess.com"]

[Event "Titled Tuesday Blitz March 22 Early 2022"]
[White "Hua, Lefong"]
[Black "Paravyan, David"]
[WhiteFideId "2602253"]
[BlackFideId "4194985"]
[WhiteElo "2598"]
[BlackElo "2569"]
[Result "0-1"]
[Round "02"]
[TimeControl "180+1"]
[Date "2022.03.22"]
[WhiteClock "0:00:14"]
[BlackClock "0:00:08"]

1. d4 {[%clk 0:03:00]}  Nf6 {[%clk 0:02:59]} 2. c4 {[%clk 0:03:00]}  g6 {[%clk 0:02:59]} 3. Nc3 {[%clk 0:03:01]}  d5 {[%clk 0:02:59]} 4. cxd5 {[%clk 0:03:02]}  Nxd5 {[%clk 0:03:00]} 5. e4 {[%clk 0:03:02]}  Nxc3 {[%clk 0:03:00]} 6. bxc3 {[%clk 0:03:03]}  Bg7 {[%clk 0:03:01]} 7. Nf3 {[%clk 0:03:04]}  c5 {[%clk 0:03:01]} 8. Rb1 {[%clk 0:03:05]}  O-O {[%clk 0:03:00]} 9. Be2 {[%clk 0:03:04]}  cxd4 {[%clk 0:02:59]} 10. cxd4 {[%clk 0:03:05]}  Qa5+ {[%clk 0:02:59]} 11. Bd2 {[%clk 0:03:05]}  Qxa2 {[%clk 0:02:59]} 12. O-O {[%clk 0:03:05]}  Bg4 {[%clk 0:03:00]} 13. Bg5 {[%clk 0:03:04]}  Rd8 {[%clk 0:02:43]} 14. d5 {[%clk 0:02:53]}  Bf6 {[%clk 0:02:43]} 15. Bxf6 {[%clk 0:02:43]}  exf6 {[%clk 0:02:44]} 16. Rxb7 {[%clk 0:02:43]}  Nd7 {[%clk 0:02:32]} 17. h3 {[%clk 0:02:07]}  Bxf3 {[%clk 0:02:31]} 18. Bxf3 {[%clk 0:02:08]}  Rab8 {[%clk 0:02:25]} 19. Rc7 {[%clk 0:01:47]}  Qa5 {[%clk 0:00:32]} 20. Qc2 {[%clk 0:01:40]}  Ne5 {[%clk 0:00:32]} 21. Rc1 {[%clk 0:01:26]}  Qb6 {[%clk 0:00:24]} 22. Qc5 {[%clk 0:01:18]}  Qxc5 {[%clk 0:00:20]} 23. R1xc5 {[%clk 0:01:18]}  a6 {[%clk 0:00:12]} 24. Ra5 {[%clk 0:01:10]}  Rd6 {[%clk 0:00:10]} 25. Ra7 {[%clk 0:01:00]}  Rbb6 {[%clk 0:00:09]} 26. Be2 {[%clk 0:00:59]}  Rb1+ {[%clk 0:00:07]} 27. Kh2 {[%clk 0:00:45]}  Rb2 {[%clk 0:00:07]} 28. R5xa6 {[%clk 0:00:33]}  Rxa6 {[%clk 0:00:07]} 29. Bxa6 {[%clk 0:00:34]}  Rxf2 {[%clk 0:00:06]} 30. Bb5 {[%clk 0:00:28]}  Rd2 {[%clk 0:00:06]} 31. Kg1 {[%clk 0:00:20]}  Kg7 {[%clk 0:00:07]} 32. Kf1 {[%clk 0:00:20]}  h5 {[%clk 0:00:07]} 33. Ke1 {[%clk 0:00:20]}  Rd4 {[%clk 0:00:07]} 34. Kf2 {[%clk 0:00:20]}  Rxe4 {[%clk 0:00:07]} 35. d6 {[%clk 0:00:21]}  Rd4 {[%clk 0:00:07]} 36. d7 {[%clk 0:00:21]}  Rd5 {[%clk 0:00:06]} 37. Ke3 {[%clk 0:00:18]}  f5 {[%clk 0:00:06]} 38. Ba4 {[%clk 0:00:18]}  Kf6 {[%clk 0:00:06]} 39. Ra6+ {[%clk 0:00:18]}  Ke7 {[%clk 0:00:06]} 40. Ra7 {[%clk 0:00:16]}  Nxd7 {[%clk 0:00:06]} 41. h4 {[%clk 0:00:17]}  Rd6 {[%clk 0:00:05]} 42. Ra8 {[%clk 0:00:16]}  Kf6 {[%clk 0:00:05]} 43. Ra7 {[%clk 0:00:16]}  Re6+ {[%clk 0:00:05]} 44. Kf2 {[%clk 0:00:16]}  Nc5 {[%clk 0:00:05]} 45. Bb5 {[%clk 0:00:16]}  Ne4+ {[%clk 0:00:05]} 46. Kg1 {[%clk 0:00:16]}  Rd6 {[%clk 0:00:05]} 47. Bc4 {[%clk 0:00:16]}  Rd1+ {[%clk 0:00:05]} 48. Kh2 {[%clk 0:00:17]}  Nd6 {[%clk 0:00:06]} 49. Ra6 {[%clk 0:00:17]}  Rd4 {[%clk 0:00:05]} 50. Bb3 {[%clk 0:00:17]}  Kg7 {[%clk 0:00:06]} 51. Ra7 {[%clk 0:00:18]}  Rxh4+ {[%clk 0:00:05]} 52. Kg1 {[%clk 0:00:17]}  Rg4 {[%clk 0:00:06]} 53. Kh2 {[%clk 0:00:18]}  Rd4 {[%clk 0:00:07]} 54. Rd7 {[%clk 0:00:18]}  Kf6 {[%clk 0:00:07]} 55. Kg1 {[%clk 0:00:18]}  h4 {[%clk 0:00:07]} 56. Kh2 {[%clk 0:00:19]}  g5 {[%clk 0:00:07]} 57. Ba2 {[%clk 0:00:19]}  g4 {[%clk 0:00:07]} 58. Bb3 {[%clk 0:00:19]}  Rd2 {[%clk 0:00:07]} 59. Ra7 {[%clk 0:00:14]}  h3 {[%clk 0:00:08]} 60. Kg3 {[%clk 0:00:14]}  Rxg2+ {[%clk 0:00:08]} 61. Kh4 {[%clk 0:00:15]}  h2 {[%clk 0:00:08]} 62. Ra1 {[%clk 0:00:14]}  Rg1 {[%clk 0:00:08]} 0-1


[Site "https://www.chess.com"]

[Event "Titled Tuesday Blitz March 22 Early 2022"]
[White "Jaferian, Koosha"]
[Black "Narayanan.S.L"]
[WhiteFideId "12507440"]
[BlackFideId "5058422"]
[WhiteElo "2030"]
[BlackElo "2494"]
[Result "0-1"]
[Round "02"]
[TimeControl "180+1"]
[Date "2022.03.22"]
[WhiteClock "0:00:20"]
[BlackClock "0:01:48"]

1. Nf3 {[%clk 0:03:00]}  d5 {[%clk 0:02:55]} 2. b3 {[%clk 0:03:00]}  Bg4 {[%clk 0:02:55]} 3. Bb2 {[%clk 0:03:00]}  Bxf3 {[%clk 0:02:55]} 4. exf3 {[%clk 0:03:01]}  Nf6 {[%clk 0:02:55]} 5. f4 {[%clk 0:03:02]}  g6 {[%clk 0:02:54]} 6. g3 {[%clk 0:03:02]}  Bg7 {[%clk 0:02:54]} 7. Bg2 {[%clk 0:03:03]}  Nh5 {[%clk 0:02:54]} 8. Bxg7 {[%clk 0:03:02]}  Nxg7 {[%clk 0:02:55]} 9. O-O {[%clk 0:03:03]}  O-O {[%clk 0:02:56]} 10. d4 {[%clk 0:03:02]}  e6 {[%clk 0:02:56]} 11. Nd2 {[%clk 0:03:02]}  Nf5 {[%clk 0:02:48]} 12. c3 {[%clk 0:03:02]}  Nd7 {[%clk 0:02:48]} 13. Nf3 {[%clk 0:02:59]}  c5 {[%clk 0:02:48]} 14. Bh3 {[%clk 0:02:47]}  Nd6 {[%clk 0:02:43]} 15. Ne5 {[%clk 0:02:31]}  Rc8 {[%clk 0:02:36]} 16. Rc1 {[%clk 0:02:24]}  Ne4 {[%clk 0:02:27]} 17. f3 {[%clk 0:02:20]}  Nef6 {[%clk 0:02:26]} 18. Qd2 {[%clk 0:02:12]}  b5 {[%clk 0:02:24]} 19. Rfd1 {[%clk 0:02:12]}  Qb6 {[%clk 0:02:24]} 20. Bf1 {[%clk 0:01:58]}  a5 {[%clk 0:02:21]} 21. Kg2 {[%clk 0:01:58]}  b4 {[%clk 0:02:20]} 22. c4 {[%clk 0:01:55]}  cxd4 {[%clk 0:02:19]} 23. Qxd4 {[%clk 0:01:55]}  Qxd4 {[%clk 0:02:19]} 24. Rxd4 {[%clk 0:01:56]}  Nxe5 {[%clk 0:02:19]} 25. fxe5 {[%clk 0:01:56]}  Nd7 {[%clk 0:02:20]} 26. f4 {[%clk 0:01:55]}  Nb6 {[%clk 0:02:17]} 27. Rcd1 {[%clk 0:01:30]}  dxc4 {[%clk 0:02:15]} 28. Bxc4 {[%clk 0:01:30]}  Nxc4 {[%clk 0:02:15]} 29. Rxc4 {[%clk 0:01:30]}  Rxc4 {[%clk 0:02:15]} 30. bxc4 {[%clk 0:01:31]}  Rc8 {[%clk 0:02:15]} 31. Rc1 {[%clk 0:01:32]}  Kf8 {[%clk 0:02:10]} 32. Kf3 {[%clk 0:01:32]}  Ke7 {[%clk 0:02:11]} 33. Ke4 {[%clk 0:01:30]}  Kd7 {[%clk 0:02:11]} 34. Rd1+ {[%clk 0:00:53]}  Ke7 {[%clk 0:02:11]} 35. Rc1 {[%clk 0:00:52]}  Kd7 {[%clk 0:01:48]} 36. Rd1+ {[%clk 0:00:52]}  Kc7 {[%clk 0:01:49]} 37. Rd6 {[%clk 0:00:47]}  Ra8 {[%clk 0:01:49]} 38. Kd4 {[%clk 0:00:37]}  a4 {[%clk 0:01:49]} 39. h4 {[%clk 0:00:22]}  b3 {[%clk 0:01:48]} 40. axb3 {[%clk 0:00:20]}  a3 {[%clk 0:01:48]} 0-1


[Site "https://www.chess.com"]

[Event "Titled Tuesday Blitz March 22 Early 2022"]
[White "Jumabayev, Rinat"]
[Black "Kouskoutis, Georgios-Alexandros"]
[WhiteFideId "13702661"]
[BlackFideId "4234049"]
[WhiteElo "2561"]
[BlackElo "2130"]
[Result "1-0"]
[Round "02"]
[TimeControl "180+1"]
[Date "2022.03.22"]
[WhiteClock "0:00:06"]
[BlackClock "0:00:02"]

1. d4 {[%clk 0:03:00]}  Nf6 {[%clk 0:02:58]} 2. c4 {[%clk 0:03:01]}  e6 {[%clk 0:02:56]} 3. Nf3 {[%clk 0:03:01]}  c5 {[%clk 0:02:55]} 4. d5 {[%clk 0:03:00]}  exd5 {[%clk 0:02:56]} 5. cxd5 {[%clk 0:03:00]}  d6 {[%clk 0:02:57]} 6. Nc3 {[%clk 0:03:01]}  g6 {[%clk 0:02:58]} 7. Nd2 {[%clk 0:02:55]}  Bg7 {[%clk 0:02:54]} 8. e4 {[%clk 0:02:56]}  O-O {[%clk 0:02:53]} 9. Be2 {[%clk 0:02:56]}  Nbd7 {[%clk 0:02:42]} 10. O-O {[%clk 0:02:55]}  Re8 {[%clk 0:02:42]} 11. Re1 {[%clk 0:02:55]}  a6 {[%clk 0:02:40]} 12. a4 {[%clk 0:02:56]}  Rb8 {[%clk 0:02:40]} 13. Nc4 {[%clk 0:02:48]}  Nb6 {[%clk 0:02:31]} 14. Nd2 {[%clk 0:02:42]}  Bd7 {[%clk 0:02:12]} 15. h3 {[%clk 0:02:38]}  Nc8 {[%clk 0:02:09]} 16. a5 {[%clk 0:02:37]}  Na7 {[%clk 0:01:55]} 17. Bd3 {[%clk 0:02:29]}  Nb5 {[%clk 0:01:51]} 18. Na4 {[%clk 0:02:29]}  Qxa5 {[%clk 0:01:37]} 19. Nc4 {[%clk 0:02:28]}  Qc7 {[%clk 0:01:35]} 20. Bf4 {[%clk 0:02:23]}  Rbd8 {[%clk 0:01:16]} 21. Rc1 {[%clk 0:02:19]}  Bc8 {[%clk 0:01:06]} 22. b4 {[%clk 0:02:06]}  Qe7 {[%clk 0:00:18]} 23. bxc5 {[%clk 0:01:33]}  dxc5 {[%clk 0:00:19]} 24. d6 {[%clk 0:01:14]}  Qf8 {[%clk 0:00:19]} 25. Nxc5 {[%clk 0:01:10]}  Nd7 {[%clk 0:00:09]} 26. Nxd7 {[%clk 0:01:03]}  Bxd7 {[%clk 0:00:10]} 27. e5 {[%clk 0:01:04]}  f6 {[%clk 0:00:06]} 28. Bf1 {[%clk 0:00:47]}  fxe5 {[%clk 0:00:05]} 29. Bxe5 {[%clk 0:00:48]}  Be6 {[%clk 0:00:04]} 30. Bxg7 {[%clk 0:00:43]}  Kxg7 {[%clk 0:00:05]} 31. Na5 {[%clk 0:00:29]}  Rxd6 {[%clk 0:00:04]} 32. Qe2 {[%clk 0:00:29]}  Bd7 {[%clk 0:00:03]} 33. Qb2+ {[%clk 0:00:27]}  Qf6 {[%clk 0:00:03]} 34. Qxf6+ {[%clk 0:00:27]}  Rxf6 {[%clk 0:00:04]} 35. Nxb7 {[%clk 0:00:28]}  Rxe1 {[%clk 0:00:03]} 36. Rxe1 {[%clk 0:00:28]}  Bc6 {[%clk 0:00:03]} 37. Nc5 {[%clk 0:00:27]}  Nc7 {[%clk 0:00:03]} 38. Rc1 {[%clk 0:00:24]}  Bb5 {[%clk 0:00:03]} 39. Bxb5 {[%clk 0:00:15]}  Nxb5 {[%clk 0:00:03]} 40. Rd1 {[%clk 0:00:12]}  Rc6 {[%clk 0:00:03]} 41. Rd7+ {[%clk 0:00:12]}  Kh6 {[%clk 0:00:04]} 42. Ne4 {[%clk 0:00:12]}  g5 {[%clk 0:00:04]} 43. g4 {[%clk 0:00:11]}  Kg6 {[%clk 0:00:03]} 44. Ng3 {[%clk 0:00:11]}  Nd6 {[%clk 0:00:02]} 45. Nh5 {[%clk 0:00:08]}  Nf7 {[%clk 0:00:03]} 46. Ra7 {[%clk 0:00:08]}  h6 {[%clk 0:00:03]} 47. Kg2 {[%clk 0:00:08]}  Rd6 {[%clk 0:00:03]} 48. f3 {[%clk 0:00:08]}  Rc6 {[%clk 0:00:03]} 49. Kg3 {[%clk 0:00:09]}  Rb6 {[%clk 0:00:03]} 50. h4 {[%clk 0:00:09]}  Rc6 {[%clk 0:00:03]} 51. hxg5 {[%clk 0:00:08]}  hxg5 {[%clk 0:00:04]} 52. Ra8 {[%clk 0:00:08]}  Kh7 {[%clk 0:00:03]} 53. Rf8 {[%clk 0:00:08]}  Rc7 {[%clk 0:00:04]} 54. Ra8 {[%clk 0:00:07]}  Rc6 {[%clk 0:00:03]} 55. Re8 {[%clk 0:00:07]}  Kg6 {[%clk 0:00:02]} 56. Rg8+ {[%clk 0:00:07]}  Kh6 {[%clk 0:00:03]} 57. Rh8+ {[%clk 0:00:07]}  Kg6 {[%clk 0:00:03]} 58. Rg8+ {[%clk 0:00:07]}  Kh6 {[%clk 0:00:03]} 59. Rg7 {[%clk 0:00:07]}  Ne5 {[%clk 0:00:03]} 60. Re7 {[%clk 0:00:07]}  Nd3 {[%clk 0:00:03]} 61. Re3 {[%clk 0:00:07]}  Nb4 {[%clk 0:00:02]} 62. Kh3 {[%clk 0:00:07]}  a5 {[%clk 0:00:02]} 63. Re5 {[%clk 0:00:06]}  Ra6 {[%clk 0:00:02]} 64. Rb5 {[%clk 0:00:04]}  Nc2 {[%clk 0:00:01]} 65. Ng3 {[%clk 0:00:04]}  a4 {[%clk 0:00:01]} 66. Nf5+ {[%clk 0:00:03]}  Kh7 {[%clk 0:00:02]} 67. Rb2 {[%clk 0:00:04]}  Nd4 {[%clk 0:00:01]} 68. Nxd4 {[%clk 0:00:04]}  a3 {[%clk 0:00:02]} 69. Ra2 {[%clk 0:00:04]}  Kg6 {[%clk 0:00:03]} 70. Kg3 {[%clk 0:00:04]}  Kf6 {[%clk 0:00:03]} 71. Nc2 {[%clk 0:00:05]}  Ke5 {[%clk 0:00:03]} 72. Nxa3 {[%clk 0:00:05]}  Kf6 {[%clk 0:00:02]} 73. Ra1 {[%clk 0:00:05]}  Kg6 {[%clk 0:00:02]} 74. Nc2 {[%clk 0:00:06]} 1-0


[Site "https://www.chess.com"]

[Event "Titled Tuesday Blitz March 22 Early 2022"]
[White "Kashefi, Amir Hosein"]
[Black "Tanenbaum, Zachary"]
[WhiteFideId "12557935"]
[BlackFideId "2060850"]
[WhiteElo "2107"]
[BlackElo "2168"]
[Result "0-1"]
[Round "02"]
[TimeControl "180+1"]
[Date "2022.03.22"]
[WhiteClock "0:00:02"]
[BlackClock "0:00:17"]

1. d4 {[%clk 0:03:00]}  d5 {[%clk 0:02:58]} 2. c4 {[%clk 0:02:59]}  Bf5 {[%clk 0:02:58]} 3. cxd5 {[%clk 0:02:57]}  Bxb1 {[%clk 0:02:57]} 4. Rxb1 {[%clk 0:02:53]}  Qxd5 {[%clk 0:02:57]} 5. b3 {[%clk 0:02:45]}  Nc6 {[%clk 0:02:55]} 6. e3 {[%clk 0:02:43]}  O-O-O {[%clk 0:02:52]} 7. Nf3 {[%clk 0:02:42]}  e5 {[%clk 0:02:51]} 8. Bc4 {[%clk 0:02:38]}  Qe4 {[%clk 0:02:41]} 9. Bd3 {[%clk 0:02:28]}  Bb4+ {[%clk 0:02:39]} 10. Ke2 {[%clk 0:02:23]}  Nxd4+ {[%clk 0:02:26]} 11. Nxd4 {[%clk 0:02:19]}  Qg4+ {[%clk 0:02:26]} 12. Nf3 {[%clk 0:02:05]}  e4 {[%clk 0:02:26]} 13. h3 {[%clk 0:02:04]}  Qxg2 {[%clk 0:01:26]} 14. Bxe4 {[%clk 0:02:04]}  Rxd1 {[%clk 0:01:25]} 15. Rxd1 {[%clk 0:02:04]}  Qxh3 {[%clk 0:01:23]} 16. Rd4 {[%clk 0:01:56]}  Bd6 {[%clk 0:01:10]} 17. Bb2 {[%clk 0:01:34]}  Nf6 {[%clk 0:01:04]} 18. Bd3 {[%clk 0:01:20]}  Re8 {[%clk 0:00:56]} 19. Rc1 {[%clk 0:01:18]}  Kb8 {[%clk 0:00:48]} 20. Rh4 {[%clk 0:01:09]}  Qd7 {[%clk 0:00:44]} 21. a4 {[%clk 0:01:05]}  Qe7 {[%clk 0:00:41]} 22. Rg1 {[%clk 0:00:46]}  g6 {[%clk 0:00:31]} 23. b4 {[%clk 0:00:24]}  h5 {[%clk 0:00:28]} 24. b5 {[%clk 0:00:24]}  Ng4 {[%clk 0:00:27]} 25. Rhxg4 {[%clk 0:00:17]}  hxg4 {[%clk 0:00:27]} 26. Rxg4 {[%clk 0:00:18]}  Bc5 {[%clk 0:00:20]} 27. Nd4 {[%clk 0:00:08]}  Qd7 {[%clk 0:00:18]} 28. Rf4 {[%clk 0:00:02]}  g5 {[%clk 0:00:18]} 29. Bf5 {[%clk 0:00:02]}  Qd8 {[%clk 0:00:17]} 0-1


[Site "https://www.chess.com"]